[Event "*** Titled Tuesday Blitz"]
[Site "Chess.com"]
[Date "2020.03.03"]
[Round "9"]
[White "Lubov_Gordyk"]
[Black "Manukyan_Artak"]
[Result "0-1"]
[WhiteElo "2619"]
[BlackElo "2436"]
[TimeControl "180+1"]
[EndTime "10:44:24 PST"]
[Termination "Manukyan_Artak won by resignation"]

1. e4 {[%clk 0:03:00.9]} 1... c6 {[%clk 0:02:59.1]} 2. d3 {[%clk 0:03:00.6]}
2... d5 {[%clk 0:03:00]} 3. Nf3 {[%clk 0:03:01.2]} 3... dxe4 {[%clk 0:02:58.4]}
4. dxe4 {[%clk 0:03:01.2]} 4... Qxd1+ {[%clk 0:02:59.3]} 5. Kxd1 {[%clk
0:03:02.1]} 5... Bg4 {[%clk 0:02:56.2]} 6. Be2 {[%clk 0:03:02.2]} 6... Nd7
{[%clk 0:02:55.1]} 7. Ne1 {[%clk 0:03:01.8]} 7... Bxe2+ {[%clk 0:02:49.1]} 8.
Kxe2 {[%clk 0:03:01.5]} 8... e5 {[%clk 0:02:49.6]} 9. Nd3 {[%clk 0:03:00.8]}
9... f6 {[%clk 0:02:48.1]} 10. Be3 {[%clk 0:03:00]} 10... Ne7 {[%clk 0:02:35.8]}
11. Nd2 {[%clk 0:02:59.1]} 11... Nc8 {[%clk 0:02:35]} 12. a4 {[%clk 0:02:58.9]}
12... Nd6 {[%clk 0:02:27.9]} 13. Rhd1 {[%clk 0:02:51.9]} 13... a6 {[%clk
0:02:13.9]} 14. f3 {[%clk 0:02:50]} 14... O-O-O {[%clk 0:02:11.5]} 15. Nc5
{[%clk 0:02:40.7]} 15... Nxc5 {[%clk 0:01:59.3]} 16. Bxc5 {[%clk 0:02:40.2]}
16... Nf5 {[%clk 0:01:49.1]} 17. exf5 {[%clk 0:02:34.8]} 17... Bxc5 {[%clk
0:01:48]} 18. Ne4 {[%clk 0:02:34.8]} 18... Be7 {[%clk 0:01:48.1]} 19. a5 {[%clk
0:02:27.3]} 19... Kc7 {[%clk 0:01:33.9]} 20. c3 {[%clk 0:02:25.6]} 20... Rd5
{[%clk 0:01:32.1]} 21. c4 {[%clk 0:02:07.9]} 21... Rd4 {[%clk 0:01:05.6]} 22.
Rxd4 {[%clk 0:02:01.5]} 22... exd4 {[%clk 0:01:06.5]} 23. c5 {[%clk 0:01:55.7]}
23... Rd8 {[%clk 0:01:05.4]} 24. Rc1 {[%clk 0:01:52]} 24... d3+ {[%clk
0:00:59.6]} 25. Kd2 {[%clk 0:01:51.3]} 25... Rd5 {[%clk 0:00:56.1]} 26. g4
{[%clk 0:01:48.8]} 26... g6 {[%clk 0:00:55.5]} 27. fxg6 {[%clk 0:01:46.9]} 27...
hxg6 {[%clk 0:00:56.4]} 28. b4 {[%clk 0:01:41.1]} 28... f5 {[%clk 0:00:55.8]}
29. Nc3 {[%clk 0:01:24.7]} 29... Bg5+ {[%clk 0:00:53.7]} 30. Kd1 {[%clk
0:01:24.9]} 30... Rd4 {[%clk 0:00:31.9]} 31. Rb1 {[%clk 0:01:16.6]} 31... fxg4
{[%clk 0:00:23.3]} 32. Ne4 {[%clk 0:01:16.5]} 32... Be3 {[%clk 0:00:21.8]} 33.
Nd2 {[%clk 0:00:58.4]} 33... gxf3 {[%clk 0:00:17.6]} 34. Nxf3 {[%clk 0:00:50.6]}
34... Rf4 {[%clk 0:00:17.7]} 35. Rb3 {[%clk 0:00:50.9]} 35... Rxf3 {[%clk
0:00:17]} 36. Rxd3 {[%clk 0:00:50.4]} 36... g5 {[%clk 0:00:06.6]} 37. Ke2 {[%clk
0:00:49.9]} 37... Rf2+ {[%clk 0:00:05.6]} 38. Kxe3 {[%clk 0:00:49.5]} 38... Rxh2
{[%clk 0:00:06.5]} 39. Rd6 {[%clk 0:00:38]} 39... Rh4 {[%clk 0:00:05.3]} 40. Rg6
{[%clk 0:00:36.7]} 40... Rxb4 {[%clk 0:00:05.2]} 41. Rg7+ {[%clk 0:00:33.8]}
41... Kb8 {[%clk 0:00:04.6]} 42. Rxg5 {[%clk 0:00:33.7]} 42... Rb5 {[%clk
0:00:05.1]} 43. Kd4 {[%clk 0:00:33.5]} 43... Rxa5 {[%clk 0:00:05.2]} 44. Rg7
{[%clk 0:00:31.3]} 44... Ka7 {[%clk 0:00:05.2]} 45. Rf7 {[%clk 0:00:29]} 45...
Rb5 {[%clk 0:00:06.1]} 46. Re7 {[%clk 0:00:24.6]} 46... Rb1 {[%clk 0:00:05.9]}
47. Rh7 {[%clk 0:00:21.8]} 47... a5 {[%clk 0:00:06.3]} 48. Ke5 {[%clk
0:00:17.4]} 48... Rd1 {[%clk 0:00:05.1]} 49. Ke6 {[%clk 0:00:10.8]} 49... Rd5
{[%clk 0:00:04.9]} 50. Rh5 {[%clk 0:00:11.2]} 50... Rxh5 {[%clk 0:00:04.4]} 0-1

[Event "*** Titled Tuesday Blitz"]
[Site "Chess.com"]
[Date "2020.03.03"]
[Round "9"]
[White "Vusatiuk_Vladimir"]
[Black "kingofthenil"]
[Result "1/2-1/2"]
[WhiteElo "2352"]
[BlackElo "2561"]
[TimeControl "180+1"]
[EndTime "10:44:24 PST"]
[Termination "Game drawn - insufficient material"]

1. e4 {[%clk 0:02:59.9]} 1... Nc6 {[%clk 0:02:59.7]} 2. Nf3 {[%clk 0:02:58.4]}
2... d6 {[%clk 0:02:59.8]} 3. d4 {[%clk 0:02:58.3]} 3... Nf6 {[%clk 0:03:00.7]}
4. Nc3 {[%clk 0:02:58.1]} 4... g6 {[%clk 0:03:01.2]} 5. h3 {[%clk 0:02:45.4]}
5... Bg7 {[%clk 0:03:01.5]} 6. Be3 {[%clk 0:02:45.8]} 6... O-O {[%clk 0:03:02]}
7. Qd2 {[%clk 0:02:46.2]} 7... a6 {[%clk 0:03:02.5]} 8. Bh6 {[%clk 0:02:36.7]}
8... e5 {[%clk 0:02:57.8]} 9. Bxg7 {[%clk 0:02:35]} 9... Kxg7 {[%clk 0:02:57.5]}
10. O-O-O {[%clk 0:02:33.2]} 10... exd4 {[%clk 0:02:47.1]} 11. Nxd4 {[%clk
0:02:32.4]} 11... Re8 {[%clk 0:02:41.4]} 12. f3 {[%clk 0:02:28.4]} 12... Nxd4
{[%clk 0:02:27.4]} 13. Qxd4 {[%clk 0:02:26.6]} 13... b5 {[%clk 0:02:28.3]} 14.
g4 {[%clk 0:02:25.3]} 14... Kg8 {[%clk 0:02:15.2]} 15. h4 {[%clk 0:02:24.6]}
15... Be6 {[%clk 0:02:10]} 16. h5 {[%clk 0:02:22.4]} 16... c5 {[%clk 0:02:09.4]}
17. Qxd6 {[%clk 0:02:18]} 17... Qa5 {[%clk 0:01:47.8]} 18. hxg6 {[%clk
0:01:27.3]} 18... fxg6 {[%clk 0:01:42.1]} 19. Qe5 {[%clk 0:01:20.2]} 19... Nd7
{[%clk 0:01:34.8]} 20. Rxd7 {[%clk 0:01:13.3]} 20... Bxd7 {[%clk 0:01:34.1]} 21.
Qxc5 {[%clk 0:01:12.3]} 21... Rac8 {[%clk 0:01:31.1]} 22. Qd4 {[%clk 0:01:05.7]}
22... Be6 {[%clk 0:01:25.2]} 23. a3 {[%clk 0:00:48.6]} 23... Qc7 {[%clk
0:01:11.4]} 24. Bd3 {[%clk 0:00:43.5]} 24... Qf4+ {[%clk 0:01:04.4]} 25. Kb1
{[%clk 0:00:39.5]} 25... Qxf3 {[%clk 0:00:59.6]} 26. Rf1 {[%clk 0:00:35.4]}
26... Qxg4 {[%clk 0:00:59.3]} 27. a4 {[%clk 0:00:26.9]} 27... bxa4 {[%clk
0:00:56.9]} 28. Nd5 {[%clk 0:00:25.5]} 28... Bxd5 {[%clk 0:00:55.4]} 29. Qxd5+
{[%clk 0:00:25.4]} 29... Qe6 {[%clk 0:00:48.7]} 30. Qa5 {[%clk 0:00:18.8]} 30...
Rf8 {[%clk 0:00:42.3]} 31. Rh1 {[%clk 0:00:14.7]} 31... Rb8 {[%clk 0:00:30.4]}
32. Qxa4 {[%clk 0:00:12.1]} 32... Qe5 {[%clk 0:00:30]} 33. Qc4+ {[%clk
0:00:08.8]} 33... Kg7 {[%clk 0:00:28.2]} 34. b3 {[%clk 0:00:09.1]} 34... Rf7
{[%clk 0:00:26.4]} 35. Rxh7+ {[%clk 0:00:06.7]} 35... Kxh7 {[%clk 0:00:22.5]}
36. Qxf7+ {[%clk 0:00:07.6]} 36... Kh6 {[%clk 0:00:23.4]} 37. Qf2 {[%clk
0:00:05.8]} 37... a5 {[%clk 0:00:18.6]} 38. Qh4+ {[%clk 0:00:05.9]} 38... Kg7
{[%clk 0:00:18.5]} 39. Qg4 {[%clk 0:00:06.4]} 39... Rf8 {[%clk 0:00:18.4]} 40.
Bc4 {[%clk 0:00:04.2]} 40... Rf7 {[%clk 0:00:19.3]} 41. Bxf7 {[%clk 0:00:03.9]}
41... Kxf7 {[%clk 0:00:19.1]} 42. Qd7+ {[%clk 0:00:04.1]} 42... Kg8 {[%clk
0:00:17.6]} 43. Qd8+ {[%clk 0:00:03.5]} 43... Kg7 {[%clk 0:00:17.5]} 44. Qd7+
{[%clk 0:00:03.9]} 44... Kf6 {[%clk 0:00:16.8]} 45. Qd8+ {[%clk 0:00:02.4]}
45... Kg7 {[%clk 0:00:16.2]} 46. Qd3 {[%clk 0:00:03.3]} 46... g5 {[%clk
0:00:15.6]} 47. c4 {[%clk 0:00:02.5]} 47... g4 {[%clk 0:00:15.8]} 48. c5 {[%clk
0:00:02.2]} 48... Qxc5 {[%clk 0:00:14.7]} 49. Qd7+ {[%clk 0:00:03.1]} 49... Kf6
{[%clk 0:00:13.3]} 50. Qxg4 {[%clk 0:00:04]} 50... Qc3 {[%clk 0:00:12.7]} 51.
Qe2 {[%clk 0:00:03.8]} 51... Qxb3+ {[%clk 0:00:11.6]} 52. Qb2+ {[%clk 0:00:04]}
52... Qxb2+ {[%clk 0:00:07.5]} 53. Kxb2 {[%clk 0:00:04.9]} 53... Ke5 {[%clk
0:00:08]} 54. Ka3 {[%clk 0:00:05.8]} 54... Kxe4 {[%clk 0:00:08.4]} 55. Ka4
{[%clk 0:00:06.7]} 55... Kd5 {[%clk 0:00:09.3]} 56. Kxa5 {[%clk 0:00:07.6]}
1/2-1/2

[Event "*** Titled Tuesday Blitz"]
[Site "Chess.com"]
[Date "2020.03.03"]
[Round "9"]
[White "Azeryahu"]
[Black "malandragem"]
[Result "0-1"]
[WhiteElo "2825"]
[BlackElo "2612"]
[TimeControl "180+1"]
[EndTime "10:44:26 PST"]
[Termination "malandragem won on time"]

1. c4 {[%clk 0:03:00.9]} 1... c5 {[%clk 0:02:59.1]} 2. g3 {[%clk 0:02:57.9]}
2... g6 {[%clk 0:02:57.8]} 3. Bg2 {[%clk 0:02:57.7]} 3... Bg7 {[%clk 0:02:58.2]}
4. Nc3 {[%clk 0:02:58.2]} 4... Nc6 {[%clk 0:02:58.3]} 5. b3 {[%clk 0:02:58.5]}
5... e5 {[%clk 0:02:57.4]} 6. Bb2 {[%clk 0:02:57.8]} 6... Nge7 {[%clk
0:02:55.9]} 7. e3 {[%clk 0:02:58.3]} 7... O-O {[%clk 0:02:54.2]} 8. Nge2 {[%clk
0:02:58.8]} 8... d6 {[%clk 0:02:32.3]} 9. O-O {[%clk 0:02:58.2]} 9... Be6 {[%clk
0:02:32.7]} 10. Nd5 {[%clk 0:02:56.7]} 10... Qd7 {[%clk 0:02:29.7]} 11. d3
{[%clk 0:02:54.1]} 11... Rab8 {[%clk 0:02:22.8]} 12. Nec3 {[%clk 0:02:52.1]}
12... a6 {[%clk 0:02:21.2]} 13. Qd2 {[%clk 0:02:38.6]} 13... b5 {[%clk
0:02:20.2]} 14. Rad1 {[%clk 0:02:35]} 14... f5 {[%clk 0:02:18.4]} 15. f4 {[%clk
0:02:33.8]} 15... h6 {[%clk 0:02:13.5]} 16. h3 {[%clk 0:02:26.3]} 16... Bf7
{[%clk 0:02:09]} 17. Kh2 {[%clk 0:02:21.9]} 17... Kh7 {[%clk 0:02:05.5]} 18. Bf3
{[%clk 0:02:15.1]} 18... Nxd5 {[%clk 0:01:57.3]} 19. Nxd5 {[%clk 0:02:14.1]}
19... b4 {[%clk 0:01:53.9]} 20. Rde1 {[%clk 0:02:06.9]} 20... Rbe8 {[%clk
0:01:52.5]} 21. Qg2 {[%clk 0:02:02.1]} 21... Ne7 {[%clk 0:01:48.6]} 22. fxe5
{[%clk 0:01:45.3]} 22... Nxd5 {[%clk 0:01:34.8]} 23. e6 {[%clk 0:01:45.5]} 23...
Bxe6 {[%clk 0:01:30.1]} 24. cxd5 {[%clk 0:01:44.4]} 24... Bg8 {[%clk 0:01:30.4]}
25. d4 {[%clk 0:01:35.1]} 25... cxd4 {[%clk 0:01:27.6]} 26. exd4 {[%clk
0:01:31.6]} 26... f4 {[%clk 0:01:23.9]} 27. Be4 {[%clk 0:01:27.7]} 27... fxg3+
{[%clk 0:01:21.3]} 28. Kxg3 {[%clk 0:01:17.7]} 28... Rxf1 {[%clk 0:01:14.2]} 29.
Qxf1 {[%clk 0:01:18.6]} 29... Rf8 {[%clk 0:01:08.9]} 30. Qxa6 {[%clk 0:01:07.1]}
30... Qf7 {[%clk 0:01:04.6]} 31. Qe2 {[%clk 0:01:06.9]} 31... Qf4+ {[%clk
0:01:00.5]} 32. Kg2 {[%clk 0:01:07.2]} 32... Bxd5 {[%clk 0:00:49.8]} 33. Bxd5
{[%clk 0:00:37.8]} 33... Qg5+ {[%clk 0:00:50]} 34. Kh2 {[%clk 0:00:38.5]} 34...
Qxd5 {[%clk 0:00:50.1]} 35. Rg1 {[%clk 0:00:39.2]} 35... Rf4 {[%clk 0:00:20.6]}
36. Rg2 {[%clk 0:00:32]} 36... Re4 {[%clk 0:00:20]} 37. Qf3 {[%clk 0:00:26.9]}
37... Bxd4 {[%clk 0:00:19.2]} 38. Bxd4 {[%clk 0:00:17.4]} 38... Rxd4 {[%clk
0:00:19.7]} 39. Qg3 {[%clk 0:00:05.3]} 39... Qe5 {[%clk 0:00:19.1]} 40. Rc2
{[%clk 0:00:04.4]} 40... Qxg3+ {[%clk 0:00:17.5]} 41. Kxg3 {[%clk 0:00:05.3]}
41... Kg7 {[%clk 0:00:18]} 42. Kf3 {[%clk 0:00:02.4]} 42... Kf6 {[%clk
0:00:18.5]} 43. Ke3 {[%clk 0:00:02.7]} 43... Ke5 {[%clk 0:00:19]} 44. Rg2 {[%clk
0:00:02.2]} 44... g5 {[%clk 0:00:19.5]} 45. Rf2 {[%clk 0:00:01.3]} 45... Rf4
{[%clk 0:00:19]} 46. Rd2 {[%clk 0:00:01.1]} 46... d5 {[%clk 0:00:19.4]} 47. Rh2
{[%clk 0:00:01.1]} 47... d4+ {[%clk 0:00:19.6]} 48. Kd3 {[%clk 0:00:01.9]} 48...
Rf3+ {[%clk 0:00:19.9]} 49. Kc4 {[%clk 0:00:02.2]} 49... d3 {[%clk 0:00:20.5]}
50. Kxb4 {[%clk 0:00:02.6]} 50... Kd4 {[%clk 0:00:20.9]} 51. a4 {[%clk
0:00:02.9]} 51... Re3 {[%clk 0:00:20.7]} 52. Rd2 {[%clk 0:00:01.7]} 52... Re2
{[%clk 0:00:20.2]} 53. Rd1 {[%clk 0:00:02.2]} 53... d2 {[%clk 0:00:19.9]} 54. a5
{[%clk 0:00:02.6]} 54... Kd3 {[%clk 0:00:18.8]} 55. a6 {[%clk 0:00:03.1]} 55...
Re1 {[%clk 0:00:15.9]} 56. Rxd2+ {[%clk 0:00:03.3]} 56... Kxd2 {[%clk
0:00:16.8]} 57. Kc5 {[%clk 0:00:02.7]} 57... h5 {[%clk 0:00:16.4]} 58. b4 {[%clk
0:00:02.3]} 58... g4 {[%clk 0:00:16.7]} 59. hxg4 {[%clk 0:00:03.2]} 59... hxg4
{[%clk 0:00:17.4]} 60. b5 {[%clk 0:00:01.6]} 60... g3 {[%clk 0:00:18]} 61. a7
{[%clk 0:00:01.5]} 61... Ra1 {[%clk 0:00:17.8]} 62. b6 {[%clk 0:00:02.4]} 62...
g2 {[%clk 0:00:18.2]} 63. b7 {[%clk 0:00:03]} 63... g1=Q+ {[%clk 0:00:18.7]} 0-1

[Event "*** Titled Tuesday Blitz"]
[Site "Chess.com"]
[Date "2020.03.03"]
[Round "9"]
[White "Jospem"]
[Black "mrkvoz"]
[Result "1-0"]
[WhiteElo "2924"]
[BlackElo "2767"]
[TimeControl "180+1"]
[EndTime "10:44:27 PST"]
[Termination "Jospem won on time"]

1. c4 {[%clk 0:03:00.9]} 1... d6 {[%clk 0:02:59.6]} 2. d4 {[%clk 0:03:00.2]}
2... e5 {[%clk 0:02:59.5]} 3. Nf3 {[%clk 0:03:01.1]} 3... e4 {[%clk 0:02:59.5]}
4. Nfd2 {[%clk 0:03:01]} 4... f5 {[%clk 0:02:59.3]} 5. e3 {[%clk 0:03:01.3]}
5... Nf6 {[%clk 0:02:59.4]} 6. Nc3 {[%clk 0:03:01.9]} 6... g6 {[%clk 0:02:58.9]}
7. f3 {[%clk 0:03:02.2]} 7... exf3 {[%clk 0:02:58.4]} 8. Qxf3 {[%clk 0:03:03.1]}
8... Bg7 {[%clk 0:02:58.9]} 9. Bd3 {[%clk 0:03:03.8]} 9... c5 {[%clk 0:02:57.9]}
10. O-O {[%clk 0:03:04]} 10... Nc6 {[%clk 0:02:57.7]} 11. Nb3 {[%clk 0:03:03.5]}
11... O-O {[%clk 0:02:55.5]} 12. Bd2 {[%clk 0:03:03.3]} 12... Be6 {[%clk
0:02:18.4]} 13. Rae1 {[%clk 0:02:59.4]} 13... Nb4 {[%clk 0:02:14.3]} 14. Be2
{[%clk 0:02:47.5]} 14... b6 {[%clk 0:02:06.7]} 15. a3 {[%clk 0:02:43.9]} 15...
Na6 {[%clk 0:02:02.9]} 16. Bd3 {[%clk 0:02:40]} 16... Kh8 {[%clk 0:01:47.8]} 17.
h3 {[%clk 0:02:39.2]} 17... Nc7 {[%clk 0:01:45.7]} 18. Kh1 {[%clk 0:02:30.7]}
18... Qd7 {[%clk 0:01:45.7]} 19. d5 {[%clk 0:02:24]} 19... Bg8 {[%clk
0:01:44.9]} 20. Ne2 {[%clk 0:02:24.5]} 20... Ne4 {[%clk 0:01:41.4]} 21. Bxe4
{[%clk 0:02:22.8]} 21... fxe4 {[%clk 0:01:42.3]} 22. Qxe4 {[%clk 0:02:23.7]}
22... Bxb2 {[%clk 0:01:40.3]} 23. Nc3 {[%clk 0:02:19.4]} 23... Bxa3 {[%clk
0:01:35.9]} 24. Qc2 {[%clk 0:02:19.3]} 24... Bb4 {[%clk 0:01:35.4]} 25. Bc1
{[%clk 0:02:19.6]} 25... h6 {[%clk 0:01:22.9]} 26. Bb2 {[%clk 0:02:14.2]} 26...
Kh7 {[%clk 0:01:21.9]} 27. Nd2 {[%clk 0:02:14.6]} 27... Qe7 {[%clk 0:01:07.6]}
28. Nde4 {[%clk 0:02:07.1]} 28... Rxf1+ {[%clk 0:00:57.7]} 29. Rxf1 {[%clk
0:02:06.1]} 29... Rf8 {[%clk 0:00:58.6]} 30. Ra1 {[%clk 0:01:59]} 30... a5
{[%clk 0:00:57.8]} 31. Ne2 {[%clk 0:01:56.9]} 31... Ne8 {[%clk 0:00:54.6]} 32.
Nf4 {[%clk 0:01:54.9]} 32... Rf5 {[%clk 0:00:45.7]} 33. Ng3 {[%clk 0:01:49.2]}
33... Rg5 {[%clk 0:00:42.5]} 34. Ne4 {[%clk 0:01:43.4]} 34... Rf5 {[%clk
0:00:42.8]} 35. g4 {[%clk 0:01:43.8]} 35... Rf8 {[%clk 0:00:37.7]} 36. Rf1
{[%clk 0:01:43.6]} 36... a4 {[%clk 0:00:35]} 37. Ng3 {[%clk 0:01:40.5]} 37...
Bf7 {[%clk 0:00:32]} 38. Qd3 {[%clk 0:01:28.2]} 38... a3 {[%clk 0:00:30.9]} 39.
Ba1 {[%clk 0:01:27.9]} 39... Nf6 {[%clk 0:00:26.8]} 40. Kg2 {[%clk 0:01:10.9]}
40... Nd7 {[%clk 0:00:24.1]} 41. Ngh5 {[%clk 0:00:59]} 41... Re8 {[%clk
0:00:18.6]} 42. Rf3 {[%clk 0:00:43.7]} 42... Qe4 {[%clk 0:00:18.4]} 43. Ne6
{[%clk 0:00:41.4]} 43... Rxe6 {[%clk 0:00:13.1]} 44. dxe6 {[%clk 0:00:25.7]}
44... Qxd3 {[%clk 0:00:12.5]} 45. exd7 {[%clk 0:00:16.6]} 45... Qc2+ {[%clk
0:00:08.8]} 46. Kg1 {[%clk 0:00:12.3]} 46... Qd1+ {[%clk 0:00:07.3]} 47. Rf1
{[%clk 0:00:09.4]} 47... Qd2 {[%clk 0:00:07.3]} 48. Nf6+ {[%clk 0:00:09.4]}
48... Kg7 {[%clk 0:00:07]} 49. Ne4+ {[%clk 0:00:09.5]} 49... Qb2 {[%clk
0:00:07.2]} 50. d8=Q {[%clk 0:00:08.2]} 50... Bc3 {[%clk 0:00:06.2]} 51. Bxb2
{[%clk 0:00:07.3]} 51... Bxb2 {[%clk 0:00:06.1]} 52. Qe7 {[%clk 0:00:07.9]}
52... Bf6 {[%clk 0:00:05.6]} 53. Qxf6+ {[%clk 0:00:07.6]} 1-0

[Event "*** Titled Tuesday Blitz"]
[Site "Chess.com"]
[Date "2020.03.03"]
[Round "9"]
[White "Region_07"]
[Black "arjwezhrtdrz"]
[Result "1-0"]
[WhiteElo "2400"]
[BlackElo "2123"]
[TimeControl "180+1"]
[EndTime "10:44:37 PST"]
[Termination "Region_07 won by resignation"]

1. d4 {[%clk 0:03:00.9]} 1... d6 {[%clk 0:02:59.5]} 2. Nf3 {[%clk 0:02:56.9]}
2... c6 {[%clk 0:02:58.8]} 3. c4 {[%clk 0:02:53.5]} 3... Nf6 {[%clk 0:02:57.9]}
4. Nc3 {[%clk 0:02:53.9]} 4... Bg4 {[%clk 0:02:57]} 5. e3 {[%clk 0:02:41.1]}
5... Nbd7 {[%clk 0:02:56.4]} 6. Be2 {[%clk 0:02:40.5]} 6... e5 {[%clk
0:02:56.4]} 7. b3 {[%clk 0:02:39]} 7... Be7 {[%clk 0:02:55.7]} 8. Bb2 {[%clk
0:02:38.7]} 8... O-O {[%clk 0:02:55.5]} 9. O-O {[%clk 0:02:38.7]} 9... Re8
{[%clk 0:02:55.1]} 10. Qd2 {[%clk 0:02:27.6]} 10... Qc7 {[%clk 0:02:53.6]} 11.
h3 {[%clk 0:02:26.4]} 11... Bxf3 {[%clk 0:02:53.4]} 12. Bxf3 {[%clk 0:02:25.9]}
12... a5 {[%clk 0:02:53.5]} 13. Rfd1 {[%clk 0:02:20.4]} 13... Rad8 {[%clk
0:02:53]} 14. Rac1 {[%clk 0:02:19.1]} 14... Nf8 {[%clk 0:02:44.1]} 15. Qc2
{[%clk 0:02:10.9]} 15... Ng6 {[%clk 0:02:43.7]} 16. Ne4 {[%clk 0:02:02.2]} 16...
Nxe4 {[%clk 0:02:42.8]} 17. Bxe4 {[%clk 0:02:02.2]} 17... Bf6 {[%clk 0:02:40.2]}
18. Bc3 {[%clk 0:01:42.2]} 18... exd4 {[%clk 0:02:32.3]} 19. Bxd4 {[%clk
0:01:41.6]} 19... Bxd4 {[%clk 0:02:30.4]} 20. Rxd4 {[%clk 0:01:42.5]} 20... Rd7
{[%clk 0:02:07]} 21. Rcd1 {[%clk 0:01:41.4]} 21... Red8 {[%clk 0:02:06.7]} 22.
Qd2 {[%clk 0:01:38.7]} 22... Ne7 {[%clk 0:01:49.2]} 23. Qe2 {[%clk 0:01:26.8]}
23... g6 {[%clk 0:01:48.4]} 24. h4 {[%clk 0:01:23.8]} 24... f5 {[%clk
0:01:47.3]} 25. Bf3 {[%clk 0:01:21.7]} 25... d5 {[%clk 0:01:32.1]} 26. Qd2
{[%clk 0:01:14.9]} 26... c5 {[%clk 0:01:24.8]} 27. Bxd5+ {[%clk 0:01:13.7]}
27... Nxd5 {[%clk 0:01:20.1]} 28. Rxd5 {[%clk 0:01:12.6]} 28... Rxd5 {[%clk
0:01:20.4]} 29. cxd5 {[%clk 0:01:13.5]} 29... Qe5 {[%clk 0:01:12.7]} 30. d6
{[%clk 0:01:09.5]} 30... b6 {[%clk 0:01:07]} 31. Qd3 {[%clk 0:01:05.4]} 31...
Kf7 {[%clk 0:01:04]} 32. h5 {[%clk 0:00:30.1]} 32... Rd7 {[%clk 0:01:03.7]} 33.
h6 {[%clk 0:00:27.9]} 33... g5 {[%clk 0:00:57.6]} 34. Qc4+ {[%clk 0:00:27.4]}
34... Qe6 {[%clk 0:00:41.9]} 35. Qc3 {[%clk 0:00:26.9]} 35... Qf6 {[%clk
0:00:40.9]} 36. Qd3 {[%clk 0:00:24.6]} 36... Kg6 {[%clk 0:00:37.4]} 37. Qd5
{[%clk 0:00:23.6]} 37... Kxh6 {[%clk 0:00:35.9]} 38. g3 {[%clk 0:00:19.3]} 38...
Kg6 {[%clk 0:00:33.7]} 39. Qg8+ {[%clk 0:00:17.5]} 39... Qg7 {[%clk 0:00:31.5]}
40. Qe8+ {[%clk 0:00:16.2]} 40... Qf7 {[%clk 0:00:31.6]} 41. Qe5 {[%clk
0:00:14.6]} 41... Qf6 {[%clk 0:00:29.5]} 42. Qe8+ {[%clk 0:00:14.2]} 42... Qf7
{[%clk 0:00:29.2]} 43. Qe5 {[%clk 0:00:11.8]} 43... h5 {[%clk 0:00:29.5]} 44.
Kg2 {[%clk 0:00:11]} 44... h4 {[%clk 0:00:29]} 45. gxh4 {[%clk 0:00:10.2]} 45...
gxh4 {[%clk 0:00:28.6]} 46. Kh3 {[%clk 0:00:11.1]} 46... f4 {[%clk 0:00:17.2]}
47. Rg1+ {[%clk 0:00:09.1]} 47... Kh7 {[%clk 0:00:17.6]} 48. e4 {[%clk
0:00:06.3]} 48... f3 {[%clk 0:00:17.3]} 49. Rg4 {[%clk 0:00:04.5]} 49... Rxd6
{[%clk 0:00:12.9]} 50. Qxd6 {[%clk 0:00:04.1]} 50... Qf6 {[%clk 0:00:12.9]} 51.
Rxh4+ {[%clk 0:00:03.9]} 51... Qxh4+ {[%clk 0:00:12.8]} 52. Kxh4 {[%clk
0:00:03.6]} 52... Kg7 {[%clk 0:00:13.7]} 53. Qe5+ {[%clk 0:00:03.3]} 53... Kf7
{[%clk 0:00:14]} 54. Qf5+ {[%clk 0:00:04.2]} 54... Ke7 {[%clk 0:00:14.4]} 55. e5
{[%clk 0:00:05.1]} 55... Kd8 {[%clk 0:00:13.9]} 56. Qf6+ {[%clk 0:00:06]} 56...
Kc7 {[%clk 0:00:14.8]} 57. e6 {[%clk 0:00:05.5]} 1-0